bitfinex/quotes_BTCUSD_20220204
["timestamp","ask_amount","ask_price","bid_price","bid_amount"]
[1643973835954,0.347094,37893.0,37892.0,0.33998883]
[1643973836154,0.05,37892.0,37891.0,0.06019238]
[1643973836354,0.01913714,37892.0,37891.0,0.06019238]
[1643973836558,0.065984,37894.0,37891.0,0.06019238]
[1643973836758,0.16876353,37895.0,37893.0,0.38979751]
[1643973836957,0.10278596,37895.0,37894.0,0.57001239]
[1643973837356,0.10278596,37895.0,37894.0,0.57020477]
[1643973837802,0.10278596,37895.0,37894.0,0.52079052]
[1643973838004,0.10278596,37895.0,37894.0,0.17369652]
[1643973838203,0.20278596,37895.0,37894.0,0.17369652]
[1643973840904,0.20278596,37895.0,37894.0,0.17350414]
[1643973842346,0.15278596,37895.0,37894.0,0.17350414]
[1643973842546,0.20278596,37895.0,37894.0,0.17350414]
[1643973842948,0.20278596,37895.0,37894.0,0.17369625]
[1643973843547,0.19278596,37895.0,37894.0,0.17369625]
[1643973843948,0.19278596,37895.0,37894.0,0.22369625]
[1643973844847,0.19278596,37895.0,37894.0,0.17369625]
[1643973845308,0.19278596,37895.0,37894.0,0.52079025]
[1643973845511,0.19278596,37895.0,37894.0,0.17369625]
[1643973845909,0.19278596,37895.0,37894.0,0.52059814]
[1643973846208,0.19278596,37895.0,37894.0,0.17369625]
[1643973846409,0.08178964,37895.0,37894.0,0.17369625]
[1643973847211,0.21374464,37895.0,37894.0,0.17369625]
[1643973847409,0.21374464,37895.0,37894.0,0.52079025]
[1643973847611,0.21374464,37895.0,37894.0,0.00019211]
[1643973847811,0.21374464,37895.0,37894.0,0.52059814]
[1643973848010,0.21374464,37895.0,37894.0,0.17369625]
[1643973848211,0.21374464,37895.0,37894.0,0.52079025]
[1643973848411,0.21374464,37895.0,37894.0,0.17350414]
[1643973848613,0.21374464,37895.0,37894.0,0.17369625]
[1643973849149,0.21374464,37895.0,37894.0,0.57023746]
[1643973849349,0.21374464,37895.0,37894.0,0.62023746]
[1643973849551,0.21374464,37895.0,37894.0,0.62004535]
[1643973849751,0.21374464,37895.0,37894.0,0.62023746]
[1643973850750,0.21374464,37895.0,37894.0,0.62004535]
[1643973850950,0.21374464,37895.0,37894.0,0.62023746]
[1643973851753,0.21374464,37895.0,37894.0,0.22369625]
[1643973853201,0.21374464,37895.0,37894.0,0.22350414]
[1643973853402,0.21374464,37895.0,37894.0,0.22369625]
[1643973854003,0.21374464,37895.0,37894.0,0.17369625]
[1643973854203,0.21468395,37900.0,37894.0,0.17369625]
[1643973854404,0.00102289,37898.0,37895.0,0.17350414]
[1643973854604,0.00102289,37898.0,37896.0,0.17350414]
[1643973854807,0.13295089,37898.0,37894.0,0.00019211]
[1643973855004,0.13295089,37898.0,37895.0,0.07795379]
[1643973855203,0.13295089,37898.0,37896.0,0.13855022]
[1643973855403,0.131928,37898.0,37897.0,0.05]
[1643973855603,0.78004491,37898.0,37897.0,0.05]
[1643973856106,0.88004491,37898.0,37897.0,0.05]
[1643973856550,0.879022,37898.0,37897.0,0.05]
[1643973857553,1.15447674,37898.0,37896.0,0.00019211]
[1643973857855,0.91306188,37897.0,37896.0,0.00019211]
[1643973858250,0.46306188,37897.0,37894.0,0.13857301]
[1643973858450,0.46306188,37897.0,37894.0,0.13876512]
[1643973858651,0.46306188,37897.0,37896.0,0.33997776]
[1643973858851,0.46306188,37897.0,37896.0,0.33997819]
[1643973859252,0.46306188,37897.0,37895.0,0.00019211]
[1643973859452,0.46306188,37897.0,37896.0,0.34001252]
[1643973859860,0.46306188,37897.0,37895.0,0.00019211]
[1643973860109,0.46306188,37897.0,37894.0,0.39683283]
[1643973860312,0.46306188,37897.0,37894.0,0.39664072]
[1643973860512,0.46306188,37897.0,37894.0,0.39683283]
[1643973860709,0.46306188,37897.0,37894.0,0.54328144]
[1643973861009,0.46306188,37897.0,37894.0,0.39683283]
[1643973861610,0.52903788,37897.0,37894.0,0.39664072]
[1643973861811,0.18194388,37897.0,37895.0,0.54309397]
[1643973862013,0.347094,37896.0,37895.0,0.39683283]
[1643973862311,0.513065,37896.0,37895.0,0.39664072]
[1643973862513,0.165971,37896.0,37895.0,0.39683283]
[1643973862712,0.513065,37896.0,37895.0,0.54329138]
[1643973862910,0.513065,37896.0,37895.0,0.39664072]
[1643973863110,0.165971,37896.0,37895.0,0.39664072]
[1643973863312,0.513065,37896.0,37895.0,0.39683283]
[1643973864049,0.513065,37896.0,37895.0,0.54329138]
[1643973864348,0.513065,37896.0,37895.0,0.54309927]
[1643973865354,0.513065,37896.0,37895.0,0.14665066]
[1643973865552,0.513065,37896.0,37895.0,0.14645855]
[1643973865753,0.513065,37896.0,37895.0,0.14665066]
[1643973866554,0.513065,37896.0,37895.0,0.14645855]
[1643973867704,0.513065,37896.0,37895.0,0.39680118]
[1643973868101,0.513065,37896.0,37895.0,0.54345184]
[1643973868301,0.513065,37896.0,37895.0,0.54325973]
[1643973869904,0.513065,37896.0,37895.0,0.59325973]
[1643973870103,0.513065,37896.0,37895.0,0.54325973]
[1643973870307,0.513065,37896.0,37895.0,0.19645855]
[1643973870505,0.513065,37896.0,37895.0,0.39680622]
[1643973871005,0.513065,37896.0,37895.0,0.14645855]
[1643973871265,0.513065,37896.0,37895.0,0.05]
[1643973871466,0.513065,37896.0,37895.0,0.00019211]
[1643973871765,0.347094,37895.0,37894.0,0.39700208]
[1643973871964,0.347094,37895.0,37894.0,0.5310931]
[1643973872166,0.347094,37895.0,37894.0,0.53128521]
[1643973872466,0.347094,37895.0,37894.0,0.5810931]
[1643973872765,0.347094,37895.0,37894.0,0.53128521]
[1643973873466,0.347094,37895.0,37894.0,0.39680997]
[1643973873667,0.347094,37895.0,37894.0,0.5310931]
[1643973873868,0.347094,37895.0,37894.0,0.53128521]
[1643973874368,0.347083,37895.0,37894.0,0.53128521]
[1643973874770,0.347083,37895.0,37894.0,0.5260931]
[1643973875007,0.347083,37895.0,37894.0,0.52628521]
[1643973875203,0.347083,37895.0,37894.0,0.34035416]
[1643973875605,0.85485283,37895.0,37894.0,0.34035288]
[1643973876003,0.58638296,37895.0,37894.0,0.34016077]
[1643973876204,0.90046184,37895.0,37894.0,0.34035288]
[1643973876806,0.90046184,37895.0,37894.0,0.00019211]
[1643973877005,0.90046184,37895.0,37893.0,0.34016077]
[1643973877206,0.323378,37894.0,37893.0,0.34111912]
[1643973877404,0.323378,37894.0,37893.0,0.00095835]
[1643973877604,0.323378,37894.0,37893.0,0.34111352]
[1643973877804,0.58412386,37894.0,37893.0,0.34111352]
[1643973878207,0.58412386,37894.0,37893.0,0.34015517]
[1643973878606,0.58412386,37894.0,37893.0,0.34034728]
[1643973879853,0.323378,37894.0,37893.0,0.34034728]
[1643973880757,0.323378,37894.0,37893.0,0.34015517]
[1643973880953,0.323378,37894.0,37891.0,0.01]
[1643973881154,0.06597918,37893.0,37891.0,0.01]
[1643973881353,0.347083,37892.0,37891.0,0.01]
[1643973881552,0.545028,37892.0,37890.0,0.05]
[1643973881755,0.545028,37892.0,37891.0,9.026e-05]
[1643973882053,0.52393556,37892.0,37891.0,9.026e-05]
[1643973882253,0.52393556,37892.0,37891.0,0.00028237]
[1643973882506,0.52393556,37892.0,37891.0,0.39690898]
[1643973882702,0.52393556,37892.0,37891.0,0.00028237]
[1643973882901,0.52393556,37892.0,37891.0,9.026e-05]
[1643973883202,0.92393556,37892.0,37891.0,9.026e-05]
[1643973883803,0.52393556,37892.0,37891.0,0.05009026]
[1643973884001,1.1824809,37892.0,37891.0,9.026e-05]
[1643973885101,0.52393556,37892.0,37891.0,9.026e-05]
[1643973885704,0.52393556,37892.0,37891.0,0.05009026]
[1643973885906,0.52393556,37892.0,37891.0,9.026e-05]
[1643973886105,0.52393556,37892.0,37891.0,0.05009026]
[1643973886757,0.52393556,37892.0,37891.0,9.026e-05]
[1643973886957,0.52393556,37892.0,37891.0,0.05009026]
[1643973888259,0.52393556,37892.0,37891.0,9.026e-05]
[1643973888461,0.17685256,37892.0,37891.0,9.026e-05]
[1643973888659,0.17685256,37892.0,37891.0,0.05009026]
[1643973889061,0.17685256,37892.0,37891.0,0.39717326]
[1643973890204,0.17685256,37892.0,37891.0,0.05009026]
[1643973892911,0.17685256,37892.0,37891.0,9.026e-05]
[1643973893614,0.17685256,37892.0,37891.0,0.05009026]
[1643973894050,0.17685256,37892.0,37891.0,9.026e-05]
[1643973894452,0.17685256,37892.0,37891.0,0.83156605]
[1643973894651,0.17685256,37892.0,37891.0,0.34717326]
[1643973895051,0.17685256,37892.0,37891.0,0.83157164]
[1643973895753,0.17685256,37892.0,37891.0,0.82657164]
[1643973896956,0.17685256,37892.0,37891.0,0.83169049]
[1643973897605,0.17685256,37892.0,37891.0,0.83149838]
[1643973897809,0.17685256,37892.0,37891.0,0.83169049]
[1643973898406,0.17685256,37892.0,37891.0,0.43487177]
[1643973898811,0.17685256,37892.0,37891.0,0.08757966]
[1643973899005,0.17685256,37892.0,37891.0,0.13777177]
[1643973899207,0.17685256,37892.0,37891.0,0.4845419]
[1643973899407,0.17685256,37892.0,37891.0,0.8316419]
[1643973899608,0.17685256,37892.0,37891.0,0.4845419]
[1643973899808,0.17685256,37892.0,37891.0,0.00019211]
[1643973900007,0.17685256,37892.0,37891.0,0.44177013]
[1643973900212,0.79845585,37892.0,37891.0,0.00019211]
[1643973900406,0.79845585,37892.0,37891.0,0.34010789]
[1643973900607,0.79845585,37892.0,37891.0,0.3403]
[1643973901009,0.18185256,37892.0,37891.0,0.3403]
[1643973901250,0.52895256,37892.0,37890.0,0.00102236]
[1643973901452,0.18185256,37892.0,37891.0,0.34011533]
[1643973901650,0.18185256,37892.0,37891.0,0.34030744]
[1643973901850,0.78922951,37892.0,37891.0,0.34030744]
[1643973902049,0.44212951,37892.0,37891.0,0.34030744]
[1643973902249,0.44212951,37892.0,37891.0,0.34011533]
[1643973902450,0.44212951,37892.0,37891.0,0.68740744]
[1643973902649,0.78922951,37892.0,37891.0,0.34030744]
[1643973903150,0.72039751,37892.0,37891.0,0.34030744]
[1643973903350,0.78922951,37892.0,37891.0,0.34030744]
[1643973903550,0.72039751,37892.0,37891.0,0.34011533]
[1643973903751,0.78922951,37892.0,37891.0,0.34030744]
[1643973904053,0.72039751,37892.0,37891.0,0.34030744]
[1643973904251,0.44212951,37892.0,37891.0,0.34030744]
[1643973904451,0.78922951,37892.0,37891.0,0.00019211]
[1643973904653,0.78922951,37892.0,37890.0,0.00019211]
[1643973904854,0.278268,37891.0,37890.0,0.00102236]
[1643973905109,0.05,37891.0,37890.0,0.00121447]
[1643973905506,0.28185256,37892.0,37890.0,0.00121447]
[1643973905710,0.28185256,37892.0,37890.0,0.00019211]
[1643973905907,0.065979,37891.0,37889.0,0.39804363]
[1643973906715,0.005,37890.0,37889.0,0.39804363]
[1643973906907,0.005,37890.0,37889.0,0.44202126]
[1643973907108,0.055,37890.0,37889.0,0.84113351]
[1643973907507,0.005,37890.0,37889.0,0.39930436]
[1643973908107,0.005,37890.0,37889.0,0.44430436]
[1643973908508,0.005,37890.0,37889.0,0.39930436]
[1643973909552,0.005,37890.0,37889.0,0.44430436]
[1643973909953,0.005,37890.0,37889.0,0.39930436]
[1643973910153,0.05,37891.0,37889.0,0.39930436]
[1643973910357,0.05,37895.0,37890.0,0.44411225]
[1643973910554,0.05,37895.0,37894.0,0.045]
[1643973910958,0.00102218,37896.0,37894.0,0.79005339]
[1643973911158,0.00102218,37896.0,37895.0,1.48946014]
[1643973911357,0.00102218,37896.0,37895.0,1.64997464]
[1643973911557,0.00070537,37896.0,37895.0,0.91902689]
[1643973911867,0.03575368,37902.0,37899.0,0.26888407]
[1643973912057,0.03575368,37902.0,37901.0,0.44166994]
[1643973912356,0.03575368,37902.0,37901.0,0.91032219]
[1643973912610,0.00035064,37907.0,37901.0,0.79005339]
[1643973912813,0.005,37914.0,37906.0,0.73208335]
[1643973912814,0.00035064,37909.0,37906.0,0.73208335]
[1643973913010,0.00035064,37913.0,37908.0,0.3921]
[1643973913209,0.005,37914.0,37908.0,0.2502314]
[1643973913409,0.00035064,37913.0,37909.0,0.3471]
[1643973913608,0.00035064,37915.0,37912.0,0.045]
[1643973913810,0.05035064,37913.0,37910.0,0.27815825]
[1643973914009,0.05,37911.0,37910.0,0.27815825]
[1643973914209,0.00035064,37913.0,37910.0,0.27815825]
[1643973914415,0.05,37914.0,37911.0,0.72594489]
[1643973914812,0.00035064,37914.0,37911.0,0.72594489]
[1643973915014,0.00035064,37915.0,37912.0,0.2]
[1643973915210,0.00035064,37918.0,37913.0,0.854509]
[1643973915410,0.002,37919.0,37918.0,0.3471]
[1643973915610,0.002,37919.0,37918.0,0.3996]
[1643973916009,0.002,37919.0,37918.0,0.48204]
[1643973916853,0.0010227,37920.0,37918.0,0.48204]
[1643973917057,0.00085748,37921.0,37918.0,0.48204]
[1643973917553,0.00085748,37921.0,37918.0,0.73145537]
[1643973919757,0.00085748,37921.0,37918.0,0.83145537]
[1643973920020,0.00085748,37921.0,37918.0,0.87645537]
[1643973920216,0.00085748,37921.0,37920.0,0.6]
[1643973920514,0.0022,37933.0,37921.0,0.3]
[1643973920515,0.00629275,37931.0,37921.0,0.3]
[1643973920714,0.00629275,37931.0,37923.0,0.131796]
[1643973920916,0.05629275,37931.0,37925.0,0.25953058]
[1643973921114,0.05629275,37931.0,37926.0,0.3996]
[1643973921314,0.0022,37931.0,37926.0,0.3996]
[1643973921516,0.0522,37931.0,37926.0,0.3996]
[1643973922016,0.0022,37931.0,37928.0,0.3471]
[1643973922319,0.0522,37931.0,37929.0,0.0525]
[1643973923315,0.0522,37931.0,37929.0,0.3996]
[1643973923525,0.0522,37931.0,37929.0,0.0525]
[1643973924171,1.3982,37930.0,37929.0,0.0525]
[1643973926571,0.3482,37930.0,37929.0,0.0525]
[1643973927173,0.3482,37930.0,37920.0,0.0525]
[1643973927372,0.05,37921.0,37917.0,0.02166352]
[1643973927607,0.0011,37930.0,37919.0,0.00102442]
[1643973927809,1.2,37920.0,37919.0,0.00102442]
[1643973928005,1.75830305,37920.0,37919.0,0.34812442]
[1643973928205,1.84891592,37920.0,37919.0,0.34812442]
[1643973928603,1.84891592,37920.0,37919.0,0.3471]
[1643973928804,2.19601592,37920.0,37918.0,0.00102433]
[1643973929004,1.04601592,37920.0,37918.0,0.00102433]
[1643973929203,0.69891592,37920.0,37919.0,0.3471]
[1643973929604,1.04601592,37920.0,37918.0,0.00102433]
[1643973929803,0.69891592,37920.0,37914.0,0.27993549]
[1643973930003,0.64891592,37920.0,37918.0,0.00102433]
[1643973930206,0.59,37919.0,37918.0,0.00102433]
[1643973930603,0.9371,37919.0,37918.0,0.00102433]
[1643973931004,0.9371,37919.0,37914.0,0.27993549]
[1643973931252,0.278268,37918.0,37917.0,0.00102434]
[1643973931452,0.318268,37918.0,37917.0,0.00102434]
[1643973932252,0.318268,37918.0,37914.0,0.28993549]
[1643973932452,0.04034966,37918.0,37916.0,0.00102435]
[1643973932654,0.3471,37917.0,37916.0,0.00102435]
[1643973933254,0.3471,37917.0,37916.0,0.01102435]
[1643973933454,0.3471,37917.0,37916.0,0.01]
[1643973933853,0.04,37918.0,37916.0,0.01]
[1643973934754,0.00034966,37919.0,37917.0,0.3471]
[1643973935009,0.23574879,37920.0,37918.0,0.01]
[1643973935207,0.00034966,37919.0,37918.0,0.01]
[1643973935408,0.23574879,37920.0,37918.0,0.3571]
[1643973935605,0.23574879,37920.0,37918.0,0.3471]
[1643973936007,0.27574879,37920.0,37918.0,0.3471]
[1643973936306,0.27574879,37920.0,37917.0,0.00102433]
[1643973936506,0.27609845,37920.0,37917.0,0.01102433]
[1643973936707,0.27574879,37920.0,37917.0,0.01102433]
[1643973936911,0.23574879,37920.0,37918.0,0.3471]
[1643973937309,0.23574879,37920.0,37917.0,0.01102434]
[1643973937509,0.23609845,37920.0,37917.0,0.01102434]
[1643973937709,0.04,37919.0,37917.0,0.01102434]
[1643973937914,0.23574879,37920.0,37917.0,0.01102434]
[1643973938110,0.00034966,37919.0,37918.0,0.3471]
[1643973938309,0.23574879,37920.0,37917.0,0.01102434]
[1643973938509,0.00034966,37919.0,37918.0,0.3471]
[1643973938752,0.23609845,37920.0,37917.0,0.01102434]
[1643973939052,0.27574879,37920.0,37918.0,0.3471]
[1643973939453,0.27609845,37920.0,37918.0,0.3471]
[1643973939654,0.27609845,37920.0,37917.0,0.00102433]
[1643973939655,0.27574879,37920.0,37917.0,0.00102433]
[1643973940054,0.27609845,37920.0,37917.0,0.00102433]
[1643973940255,0.27574879,37920.0,37917.0,0.00102433]
[1643973940654,0.27609845,37920.0,37916.0,0.01]
[1643973940857,0.27609845,37920.0,37919.0,0.01]
[1643973940858,0.27574879,37920.0,37919.0,0.01]
[1643973941056,0.62284879,37920.0,37919.0,0.01]
[1643973941256,0.27574879,37920.0,37919.0,0.01]
[1643973941457,0.62284879,37920.0,37919.0,0.01]
[1643973941658,0.27574879,37920.0,37919.0,0.01]
[1643973941857,0.62284879,37920.0,37919.0,0.01]
[1643973942502,0.23574879,37920.0,37919.0,0.01]
[1643973942704,0.04,37921.0,37919.0,0.01]
[1643973943008,0.00102416,37924.0,37920.0,0.01]
[1643973943009,0.00034966,37923.0,37920.0,0.01]
[1643973943306,0.00034966,37921.0,37920.0,0.01]
[1643973943503,0.04,37922.0,37920.0,0.01]
[1643973943802,0.00034966,37922.0,37921.0,0.30695423]
[1643973944003,0.00034966,37922.0,37921.0,0.31695423]
[1643973944004,0.34744966,37922.0,37921.0,0.31695423]
[1643973944305,0.04034966,37924.0,37921.0,0.31695423]
[1643973944503,0.00034966,37923.0,37921.0,0.31695423]
[1643973944702,0.00137384,37924.0,37921.0,0.30695423]
[1643973944904,0.59,37922.0,37919.0,0.00102431]
[1643973945104,0.04,37920.0,37919.0,0.00102431]
[1643973945304,0.66391403,37920.0,37915.0,0.065921]
[1643973945504,0.26391403,37920.0,37918.0,0.00102433]
[1643973945903,0.04,37919.0,37918.0,0.00102433]
[1643973946104,0.04,37919.0,37918.0,0.22740192]
[1643973946559,0.04,37919.0,37918.0,0.22637759]
[1643973947558,0.22391403,37920.0,37918.0,0.22637759]
[1643973947759,0.04,37919.0,37918.0,0.22637759]
[1643973949665,0.00034966,37922.0,37921.0,0.09977109]
[1643973949863,0.00034966,37923.0,37921.0,0.09977109]
[1643973950124,0.23002768,37924.0,37922.0,0.05]
[1643973950324,0.34744966,37923.0,37921.0,0.00787781]
[1643973950527,0.3471,37923.0,37921.0,0.00787781]
[1643973950723,0.34744966,37923.0,37921.0,0.00787781]
[1643973952225,0.34744966,37923.0,37921.0,0.05787781]
[1643973953853,0.00034966,37923.0,37921.0,0.05787781]
[1643973954054,0.23105187,37924.0,37921.0,0.05787781]
[1643973954253,0.23105187,37924.0,37922.0,0.3471]
[1643973954455,0.23105187,37924.0,37921.0,0.05787781]
[1643973955056,0.23002768,37924.0,37921.0,0.05787781]
[1643973955256,0.23105186,37924.0,37921.0,0.05787781]
[1643973956258,0.23002768,37924.0,37921.0,0.05787781]
[1643973956457,0.23105186,37924.0,37921.0,0.05787781]
[1643973956856,0.00102418,37924.0,37922.0,0.3471]
[1643973957518,0.00034966,37927.0,37922.0,0.413022]
[1643973957713,0.00137384,37925.0,37922.0,0.05]
[1643973957913,0.19111776,37923.0,37922.0,0.3971]
[1643973958213,0.19111776,37923.0,37922.0,0.3471]
[1643973960014,0.19111776,37923.0,37922.0,0.3971]
[1643973960215,0.19111776,37923.0,37922.0,0.3471]
[1643973960614,0.41188527,37923.0,37922.0,0.3471]
[1643973960817,0.68308023,37923.0,37920.0,0.06592774]
[1643973961017,0.68308023,37923.0,37915.0,0.13187441]
[1643973961018,0.3996,37922.0,37915.0,0.13187441]
[1643973961256,0.4996,37922.0,37919.0,0.00102433]
[1643973961455,0.29246428,37921.0,37919.0,0.00102433]
[1643973961655,1.578268,37920.0,37919.0,0.00102433]
[1643973962254,1.578268,37920.0,37915.0,0.37752626]
[1643973962457,1.12697724,37919.0,37918.0,0.00102433]
[1643973962656,1.47372758,37919.0,37918.0,0.00102433]
[1643973963457,1.47372758,37919.0,37916.0,0.05]
[1643973963658,0.75,37918.0,37917.0,0.00102434]
[1643973964258,0.75,37918.0,37917.0,0.06696146]
[1643973964657,0.75,37918.0,37917.0,0.06593712]
[1643973965309,1.01981111,37918.0,37917.0,0.06593712]
[1643973965511,1.0971,37918.0,37917.0,0.06593712]
[1643973965808,0.00034966,37919.0,37917.0,0.06593712]
[1643973966009,0.3471,37919.0,37917.0,0.06593712]
[1643973966209,0.34744966,37919.0,37917.0,0.06593712]
[1643973966412,0.2532762,37920.0,37917.0,0.06593712]
[1643973966608,0.05284966,37921.0,37917.0,0.06593712]
[1643973966811,0.00034966,37920.0,37919.0,0.05]
[1643973967010,0.0525,37921.0,37919.0,0.18184633]
[1643973967011,0.00034966,37921.0,37919.0,0.18184633]
[1643973967211,0.28840048,37926.0,37919.0,0.18184633]
[1643973967212,0.00034966,37923.0,37919.0,0.18184633]
[1643973967409,0.00137381,37924.0,37920.0,0.41301992]
[1643973967609,0.00034966,37923.0,37922.0,0.3471]
[1643973967810,0.00102415,37924.0,37922.0,0.60380792]
[1643973968012,0.00102415,37924.0,37923.0,0.3471]
[1643973968214,0.00034966,37924.0,37923.0,0.3971]
[1643973968413,0.00102418,37925.0,37924.0,0.3471]
[1643973968611,0.00102418,37925.0,37924.0,0.3971]
[1643973968857,0.00084631,37925.0,37924.0,0.3471]
[1643973969063,0.00084631,37925.0,37924.0,0.64780624]
[1643973969256,0.00084631,37925.0,37924.0,0.59780624]
[1643973969558,0.00034966,37926.0,37924.0,0.66371824]
[1643973969756,0.00034966,37927.0,37924.0,0.66371824]
[1643973969957,0.00034966,37930.0,37925.0,0.19772947]
[1643973970157,0.213886,37931.0,37926.0,0.3471]
[1643973970357,0.34744966,37930.0,37925.0,0.24772947]
[1643973970559,0.213886,37931.0,37928.0,0.28774123]
[1643973970758,0.34744966,37930.0,37929.0,0.05]
[1643973970960,0.3471,37930.0,37929.0,0.05]
[1643973971562,0.21353634,37931.0,37929.0,0.05]
[1643973971859,0.21353634,37931.0,37929.0,0.11591395]
[1643973972059,0.21353634,37931.0,37929.0,0.06591395]
[1643973972511,0.56063634,37931.0,37929.0,0.06591395]
[1643973972706,0.3471,37931.0,37929.0,0.06591395]
[1643973973512,0.34744966,37931.0,37929.0,0.11591395]
[1643973973810,0.34744966,37931.0,37929.0,0.18182595]
[1643973974411,0.34744966,37931.0,37929.0,0.06591395]
[1643973974913,0.27592333,37930.0,37924.0,0.13184899]
[1643973975112,0.50419133,37929.0,37924.0,0.13184899]
[1643973975413,0.60454099,37929.0,37924.0,0.13184899]
[1643973975611,0.23863363,37926.0,37924.0,0.13184899]
[1643973975810,0.3471,37925.0,37924.0,0.13184899]
[1643973977964,0.5496,37925.0,37920.0,0.00102447]
[1643973978163,0.49463872,37924.0,37920.0,0.00102447]
[1643973978362,0.330768,37923.0,37920.0,0.00102447]
[1643973978562,0.25012936,37922.0,37920.0,0.00102447]
[1643973978762,1.5996,37921.0,37920.0,0.00102447]
[1643973978962,2.00117463,37921.0,37914.0,0.29556732]
[1643973979267,0.54713273,37915.0,37914.0,0.29556732]
[1643973979464,0.54713273,37915.0,37914.0,0.64266732]
[1643973979662,0.19713273,37915.0,37914.0,0.64266732]
[1643973979863,0.23642864,37920.0,37914.0,0.29556732]
[1643973980107,0.3996,37920.0,37914.0,0.29556732]
[1643973980306,0.38297352,37920.0,37915.0,0.00102449]
[1643973980607,0.38297352,37920.0,37914.0,0.34556732]
[1643973980608,0.7,37919.0,37914.0,0.34428674]
[1643973980805,0.2108888,37915.0,37914.0,0.34428674]
[1643973981005,0.2108888,37915.0,37914.0,0.69138674]
[1643973981205,0.22794961,37918.0,37914.0,0.34428674]
[1643973981406,0.3471,37917.0,37914.0,0.34428674]
[1643973981605,1.07903961,37919.0,37914.0,0.34428674]
[1643973981807,0.1,37919.0,37915.0,0.413037]
[1643973982008,0.1,37919.0,37915.0,0.3471]
[1643973982207,0.24587532,37916.0,37915.0,0.3471]
[1643973983006,1.09587532,37916.0,37915.0,0.3471]
[1643973983207,1.09587532,37916.0,37912.0,0.13188228]
[1643973983208,1.44297532,37916.0,37912.0,0.13188228]
[1643973983407,0.278268,37915.0,37912.0,0.13188228]
[1643973984056,0.39837532,37916.0,37912.0,0.13240426]
[1643973984254,0.29837532,37916.0,37913.0,0.41304092]
[1643973984955,0.29837532,37916.0,37913.0,0.63957042]
[1643973984956,0.0525,37916.0,37913.0,0.63957042]
[1643973985154,0.0525,37916.0,37914.0,0.05]
[1643973985356,0.00102354,37921.0,37915.0,0.6236295]
[1643973985555,0.05352354,37921.0,37915.0,0.6236295]
[1643973985956,0.05352354,37921.0,37916.0,0.5088899]
[1643973986156,0.0525,37921.0,37917.0,0.3471]
[1643973986357,0.0525,37921.0,37917.0,0.3971]
[1643973986358,0.0535236,37921.0,37917.0,0.3971]
[1643973986556,0.0535236,37921.0,37919.0,0.3471]
[1643973986758,0.0010236,37921.0,37919.0,0.3471]
[1643973986958,0.0010236,37921.0,37919.0,0.3971]
[1643973987360,0.00034966,37922.0,37919.0,0.3971]
[1643973987609,0.00102358,37922.0,37919.0,0.3971]
[1643973988010,0.00137324,37922.0,37919.0,0.3971]
[1643973988209,0.00102358,37922.0,37919.0,0.3971]
[1643973988408,0.00102358,37922.0,37919.0,0.59488784]
[1643973988610,0.00034966,37924.0,37920.0,0.3471]
[1643973988812,0.00102358,37922.0,37920.0,0.3471]
[1643973989813,0.00034966,37924.0,37920.0,0.3471]
[1643973990016,0.00102357,37923.0,37919.0,0.18185507]
[1643973990411,0.00102357,37923.0,37920.0,0.13185652]
[1643973991011,0.00034966,37924.0,37920.0,0.13185652]
[1643973991012,0.3471,37922.0,37920.0,0.13185652]
[1643973991268,0.00102356,37923.0,37920.0,0.13185652]
[1643973991470,0.00137322,37923.0,37920.0,0.13185652]
[1643973991668,0.3471,37922.0,37920.0,0.13185652]
[1643973992068,0.00102356,37923.0,37921.0,0.05]
[1643973992269,0.00034966,37924.0,37921.0,0.115928]
[1643973992573,0.00102357,37923.0,37921.0,0.115928]
[1643973993370,0.00034966,37923.0,37921.0,0.18185567]
[1643973993570,0.61797101,37926.0,37921.0,0.06592767]
[1643973993571,0.00137321,37924.0,37921.0,0.06592767]
[1643973993772,0.00102355,37924.0,37921.0,0.06592767]
[1643973993970,0.3471,37923.0,37921.0,0.06592767]
[1643973994170,0.00034966,37923.0,37921.0,0.06592767]
[1643973994372,0.3471,37923.0,37921.0,0.06592767]
[1643973994572,0.34744966,37923.0,37921.0,0.06592767]
[1643973994774,0.3471,37923.0,37921.0,0.06592767]
[1643973995208,0.34744966,37923.0,37921.0,0.06592767]
[1643973995605,0.44744966,37923.0,37921.0,0.06592767]
[1643973995807,0.4471,37923.0,37921.0,0.06592767]
[1643973997307,0.1,37923.0,37921.0,0.06592767]
[1643973997710,0.27964121,37924.0,37921.0,0.06592767]
[1643973997910,0.27929155,37924.0,37921.0,0.06592767]
[1643973998211,0.278268,37924.0,37921.0,0.06592767]
[1643973998511,0.27929155,37924.0,37920.0,0.13185652]
[1643973999459,0.278268,37924.0,37920.0,0.13185652]
[1643973999658,0.27929155,37924.0,37920.0,0.13185652]
[1643973999860,0.27929155,37924.0,37922.0,0.27974849]
[1643974000163,0.27929155,37924.0,37922.0,0.27922169]
[1643974000464,0.00102355,37924.0,37922.0,0.27922169]
[1643974000658,0.00034966,37929.0,37922.0,0.27922169]
[1643974000860,0.00034966,37924.0,37922.0,0.27922169]
[1643974001060,0.278268,37923.0,37922.0,0.27922169]
[1643974001261,0.278268,37923.0,37922.0,0.06592492]
[1643974001459,0.0013732,37925.0,37922.0,0.06592492]
[1643974001661,0.3471,37924.0,37922.0,0.06592492]
[1643974003311,0.00102354,37925.0,37923.0,0.3471]
[1643974003513,0.0013732,37925.0,37924.0,0.05]
[1643974003711,0.00102354,37925.0,37924.0,0.05]
[1643974003912,0.00102354,37925.0,37924.0,0.3971]
[1643974004112,0.00034966,37927.0,37924.0,0.4471]
[1643974004314,0.3471,37927.0,37925.0,0.06591998]
[1643974004513,0.00016836,37926.0,37925.0,0.06591998]
[1643974005113,0.27843636,37926.0,37925.0,0.06591998]
[1643974005415,0.278268,37926.0,37925.0,0.06591998]
[1643974010608,0.278268,37926.0,37921.0,0.05]
[1643974011808,0.00034966,37927.0,37921.0,0.05]
[1643974012007,0.62080641,37928.0,37921.0,0.05]
[1643974012209,0.00034966,37927.0,37921.0,0.05]
[1643974012407,0.62080641,37928.0,37924.0,0.13183996]
[1643974012708,0.34744966,37927.0,37924.0,0.23183996]
[1643974013008,0.3471,37927.0,37924.0,0.18183996]
[1643974013208,0.34744966,37927.0,37924.0,0.18183996]
[1643974013608,0.3471,37926.0,37924.0,0.18183996]
[1643974013856,0.58622702,37926.0,37924.0,0.18183996]
[1643974014256,0.58622702,37926.0,37924.0,0.05]
[1643974014658,0.58622702,37926.0,37922.0,0.05]
[1643974014860,0.23912702,37926.0,37922.0,0.05]
[1643974016863,0.06627766,37927.0,37919.0,0.6493786]